fUSD/lending_fUSD_20250606
["ID","MTS","AMOUNT","RATE_DAILY","PERIOD"]
[364668702,1749192670950,-386.336518,0.00030328,7]
[364668703,1749192670959,-480.0,0.00030328,7]
[364668704,1749192670969,-491.15568339,0.00030328,7]
[364668705,1749192670979,-386.336518,0.00030328,7]
[364668706,1749192670989,-386.336518,0.00030328,7]
[364668707,1749192670998,-386.336518,0.00030328,7]
[364668708,1749192671007,-386.336518,0.00030328,7]
[364668709,1749192671017,-386.336518,0.00030328,7]
[364668710,1749192671026,-480.0,0.00030328,7]
[364668711,1749192671036,-480.0,0.00030328,7]
[364668712,1749192671046,-156.114395,0.00030328,7]
[364668713,1749192671056,-480.0,0.00030328,7]
[364668714,1749192671066,-480.0,0.00030328,7]
[364668715,1749192671076,-194.00167207,0.00030328,7]
[364668716,1749192671086,-917.586132,0.00030328,7]
[364668717,1749192671100,-480.0,0.00030328,7]
[364668718,1749192671110,-917.586132,0.00030328,7]
[364668719,1749192671120,-480.0,0.00030328,7]
[364668720,1749192671130,-917.586132,0.00030328,7]
[364668721,1749192671140,-917.586132,0.00030328,7]
[364668722,1749192671150,-917.586132,0.00030328,7]
[364668723,1749192671159,-917.586132,0.00030328,7]
[364668724,1749192671169,-917.586132,0.00030328,7]
[364668725,1749192671178,-917.586132,0.00030328,7]
[364668726,1749192671188,-917.586132,0.00030328,7]
[364668727,1749192671198,-917.586132,0.00030328,7]
[364668728,1749192671207,-480.0,0.00030328,7]
[364668729,1749192671216,-489.59481126,0.00030328,7]
[364668730,1749192671227,-480.0,0.00030328,7]
[364668731,1749192671237,-480.0,0.00030328,7]
[364668732,1749192671246,-480.0,0.00030328,7]
[364668733,1749192671255,-151.291649,0.00030328,7]
[364668734,1749192671266,-151.291649,0.00030328,7]
[364668735,1749192671275,-151.0,0.00030328,7]
[364668736,1749192671286,-492.7264161,0.00030328,7]
[364668737,1749192671295,-151.0,0.00030328,7]
[364668738,1749192671305,-151.0,0.00030328,7]
[364668739,1749192671315,-151.0,0.00030328,7]
[364668740,1749192671325,-486.97249371,0.00030328,7]
[364668741,1749192671334,-151.291649,0.00030328,7]
[364668742,1749192671344,-151.291645,0.00030328,7]
[364668743,1749192671354,-480.0,0.00030328,7]
[364668744,1749192671363,-480.0,0.00030328,7]
[364668745,1749192671373,-422.3138648,0.00030328,7]
[364668746,1749192671383,-480.0,0.00030328,7]
[364668747,1749192671393,-151.0,0.00030328,7]
[364668748,1749192671403,-151.0,0.00030328,7]
[364668749,1749192671413,-493.49720117,0.00030328,7]
[364668750,1749192671422,-480.0,0.00030328,7]
[364668751,1749192671431,-480.0,0.00030328,7]
[364668752,1749192671441,-798.01,0.00030328,30]
[364668753,1749192671450,-480.0,0.00030328,7]
[364668754,1749192671460,-480.0,0.00030328,7]
[364668755,1749192671470,-480.0,0.00030328,7]
[364668756,1749192671480,-480.0,0.00030328,7]
[364668757,1749192671490,-480.0,0.00030328,7]
[364668758,1749192671500,-1360.458994,0.00030328,7]
[364668759,1749192671511,-1360.458994,0.00030328,7]
[364668760,1749192671520,-1360.458994,0.00030328,7]
[364668761,1749192671530,-1360.458994,0.00030328,7]
[364668762,1749192671541,-480.0,0.00030328,7]
[364668763,1749192671551,-480.0,0.00030328,7]
[364668764,1749192671560,-1360.458994,0.00030328,7]
[364668765,1749192671570,-1360.458994,0.00030328,7]
[364668766,1749192671580,-1360.458994,0.00030328,7]
[364668767,1749192671590,-480.0,0.00030328,7]
[364668768,1749192671599,-1360.458994,0.00030328,7]
[364668769,1749192671609,-480.0,0.00030328,7]
[364668770,1749192671619,-480.0,0.00030328,7]
[364668771,1749192671628,-480.0,0.00030328,7]
[364668772,1749192671638,-480.0,0.00030328,7]
[364668773,1749192671647,-480.0,0.00030328,7]
[364668774,1749192671657,-480.0,0.00030328,7]
[364668775,1749192671666,-487.95206151,0.00030328,7]
[364668776,1749192671675,-151.0,0.00030328,7]
[364668777,1749192671685,-480.0,0.00030328,7]
[364668778,1749192671694,-181.258642,0.00030328,7]
[364668779,1749192671704,-480.0,0.00030328,7]
[364668780,1749192671714,-480.0,0.00030328,7]
[364668781,1749192671723,-414.51703739,0.00030328,7]
[364668782,1749192671733,-480.0,0.00030328,7]
[364668783,1749192671743,-480.0,0.00030328,7]
[364668784,1749192671752,-151.0,0.00030328,7]
[364668785,1749192671762,-862.223772,0.00030328,7]
[364668786,1749192671771,-151.0,0.00030328,7]
[364668787,1749192671781,-862.223772,0.00030328,7]
[364668788,1749192671791,-862.223772,0.00030328,7]
[364668789,1749192671800,-862.223772,0.00030328,7]
[364668790,1749192671810,-480.0,0.00030328,7]
[364668791,1749192671820,-862.223772,0.00030328,7]
[364668792,1749192671831,-862.223772,0.00030328,7]
[364668793,1749192671840,-862.223772,0.00030328,7]
[364668794,1749192671850,-862.223777,0.00030328,7]
[364668795,1749192671859,-819.62,0.00030328,7]
[364668796,1749192671869,-3575.617004,0.00030328,7]
[364668797,1749192671879,-3575.617004,0.00030328,7]
[364668798,1749192671889,-1527.84,0.00030328,7]
[364668799,1749192671898,-489.6966209,0.00030328,7]
[364668800,1749192671911,-480.0,0.00030328,7]
[364668801,1749192671920,-3575.617004,0.00030328,7]
[364668802,1749192671930,-3575.617008,0.00030328,7]
[364668803,1749192671940,-349.87284178,0.00030328,7]
[364668804,1749192671950,-480.0,0.00030328,7]
[364668805,1749192671960,-480.0,0.00030328,7]
[364668806,1749192671969,-480.0,0.00030328,7]
[364668807,1749192671982,-480.0,0.00030328,7]
[364668808,1749192671992,-480.0,0.00030328,7]
[364668809,1749192672002,-488.59716867,0.00030328,7]
[364668810,1749192672012,-480.0,0.00030328,7]
[364668811,1749192672022,-155.152848,0.00030328,7]
[364668812,1749192672031,-155.152848,0.00030328,7]
[364668813,1749192672041,-480.0,0.00030328,7]
[364668814,1749192672051,-480.0,0.00030328,7]
[364668815,1749192672060,-155.152848,0.00030328,7]
[364668816,1749192672071,-480.0,0.00030328,7]
[364668817,1749192672081,-155.152856,0.00030328,7]
[364668818,1749192672091,-487.88626891,0.00030328,7]
[364668819,1749192672100,-480.0,0.00030328,7]
[364668820,1749192672110,-480.0,0.00030328,7]
[364668821,1749192672120,-480.0,0.00030328,7]
[364668822,1749192672130,-484.69207752,0.00030328,7]
[364668823,1749192672139,-480.0,0.00030328,7]
[364668824,1749192672149,-480.0,0.00030328,7]
[364668825,1749192672159,-480.0,0.00030328,7]
[364668826,1749192672168,-480.0,0.00030328,7]
[364668827,1749192672178,-480.0,0.00030328,7]
[364668828,1749192672187,-480.0,0.00030328,7]
[364668829,1749192672196,-480.0,0.00030328,7]
[364668830,1749192672206,-480.0,0.00030328,7]
[364668831,1749192672215,-480.0,0.00030328,7]
[364668832,1749192672224,-480.0,0.00030328,7]
[364668833,1749192672233,-480.0,0.00030328,7]
[364668834,1749192672243,-480.0,0.00030328,7]
[364668835,1749192672252,-1191.278394,0.00030328,7]
[364668836,1749192672262,-1191.278394,0.00030328,7]
[364668837,1749192672271,-1191.278394,0.00030328,7]
[364668838,1749192672280,-1191.278399,0.00030328,7]
[364668839,1749192672290,-480.0,0.00030328,7]
[364668840,1749192672300,-480.0,0.00030328,7]
[364668841,1749192672309,-480.0,0.00030328,7]
[364668842,1749192672318,-474.67354337,0.00030328,7]
[364668843,1749192672328,-480.0,0.00030328,7]
[364668844,1749192672338,-480.0,0.00030328,7]
[364668845,1749192672347,-480.0,0.00030328,7]
[364668846,1749192672358,-1151.55,0.00030328,7]
[364668847,1749192672367,-880.81,0.00030328,7]
[364668848,1749192672377,-480.0,0.00030328,7]
[364668849,1749192672386,-151.0,0.00030328,7]
[364668850,1749192672395,-151.0,0.00030328,7]
[364668851,1749192672404,-151.0,0.00030328,7]
[364668852,1749192672414,-151.0,0.00030328,7]
[364668853,1749192672425,-166.838739,0.00030328,7]
[364668854,1749192672434,-166.838739,0.00030328,7]
[364668855,1749192672443,-480.0,0.00030328,7]
[364668856,1749192672453,-417.19906657,0.00030328,7]
[364668857,1749192672462,-600.15,0.00030328,7]
[364668858,1749192672472,-480.0,0.00030328,7]
[364668859,1749192672481,-166.838739,0.00030328,7]
[364668860,1749192672491,-166.838732,0.00030328,7]
[364668861,1749192672500,-480.0,0.00030328,7]
[364668862,1749192672511,-480.0,0.00030328,7]
[364668863,1749192672520,-480.0,0.00030328,7]
[364668864,1749192672529,-621.64,0.00030328,7]
[364668865,1749192672539,-480.0,0.00030328,7]
[364668866,1749192672548,-470.04607363,0.00030328,7]
[364668867,1749192672557,-480.0,0.00030328,7]
[364668868,1749192672566,-480.0,0.00030328,7]
[364668869,1749192672576,-480.0,0.00030328,7]
[364668870,1749192672585,-480.0,0.00030328,7]
[364668871,1749192672594,-628.23543532,0.00030328,7]
[364668872,1749192672603,-1357.61,0.00030328,7]
[364668873,1749192672613,-480.0,0.00030328,7]
[364668874,1749192672622,-480.0,0.00030328,7]
[364668875,1749192672632,-480.0,0.00030328,7]
[364668876,1749192672641,-480.0,0.00030328,7]
[364668877,1749192672652,-480.0,0.00030328,7]
[364668878,1749192672661,-427.64601858,0.00030328,7]
[364668879,1749192672671,-665.71,0.00030328,7]
[364668880,1749192672681,-469.05084811,0.00030328,7]
[364668881,1749192672691,-503.62344121,0.00030328,7]
[364668882,1749192672867,-480.0,0.00030328,7]
[364668883,1749192672877,-182.121268,0.00030328,7]
[364668884,1749192672887,-182.121268,0.00030328,7]
[364668885,1749192672897,-480.0,0.00030328,7]
[364668886,1749192672910,-480.0,0.00030328,7]
[364668887,1749192672919,-480.0,0.00030328,7]
[364668888,1749192672929,-182.121268,0.00030328,7]
[364668889,1749192672938,-1239.07,0.00030328,7]
[364668890,1749192672949,-182.121269,0.00030328,7]
[364668891,1749192672959,-480.0,0.00030328,7]
[364668892,1749192672969,-545.98,0.00030328,7]
[364668893,1749192672979,-785.19,0.00030328,7]
[364668894,1749192672989,-480.0,0.00030328,7]
[364668895,1749192672999,-475.62597457,0.00030328,7]
[364668896,1749192673009,-480.0,0.00030328,7]
[364668897,1749192673018,-480.0,0.00030328,7]
[364668898,1749192673028,-1302.71,0.00030328,7]
[364668899,1749192673038,-480.0,0.00030328,7]
[364668900,1749192673048,-480.0,0.00030328,7]
[364668901,1749192673058,-480.0,0.00030328,7]
[364668902,1749192673068,-867.72,0.00030328,7]
[364668903,1749192673078,-480.0,0.00030328,7]
[364668904,1749192673088,-480.0,0.00030328,7]
[364668905,1749192673097,-480.0,0.00030328,7]
[364668906,1749192673106,-1061.28,0.00030328,7]
[364668907,1749192673116,-487.93579476,0.00030328,7]
[364668908,1749192673125,-480.0,0.00030328,7]
[364668909,1749192673135,-480.0,0.00030328,7]
[364668910,1749192673145,-481.92198637,0.00030328,7]
[364668911,1749192673154,-151.0,0.00030328,7]
[364668912,1749192673164,-480.0,0.00030328,7]
[364668913,1749192673173,-480.0,0.00030328,7]
[364668914,1749192673183,-151.0,0.00030328,7]
[364668915,1749192673192,-151.0,0.00030328,7]
[364668916,1749192673202,-480.0,0.00030328,7]
[364668917,1749192673211,-151.0,0.00030328,7]
[364668918,1749192673221,-818.4,0.00030328,7]
[364668919,1749192673231,-480.0,0.00030328,7]
[364668920,1749192673241,-592.83,0.00030328,7]
[364668921,1749192673251,-536.86565212,0.00030328,7]
[364668922,1749192673260,-480.0,0.00030328,7]
[364668923,1749192673270,-301.3664513,0.00030328,7]
[364668924,1749192673280,-674.88,0.00030328,7]
[364668925,1749192673291,-598.69,0.00030328,7]
[364668926,1749192673300,-548.32,0.00030328,7]
[364668927,1749192673310,-480.0,0.00030328,7]
[364668928,1749192673319,-480.0,0.00030328,7]
[364668929,1749192673329,-487.24265669,0.00030328,7]
[364668930,1749192673339,-489.13619143,0.00030328,7]
[364668931,1749192673349,-545.23912968,0.00030328,7]
[364668932,1749192673359,-480.0,0.00030328,7]
[364668933,1749192673369,-480.0,0.00030328,7]
[364668934,1749192673379,-480.0,0.00030328,7]
[364668935,1749192673389,-480.0,0.00030328,7]
[364668936,1749192673398,-480.0,0.00030328,7]
[364668937,1749192673408,-794.53,0.00030328,7]
[364668938,1749192673418,-480.0,0.00030328,7]
[364668939,1749192673427,-480.0,0.00030328,7]
[364668940,1749192673436,-480.0,0.00030328,7]
[364668941,1749192673445,-480.0,0.00030328,7]
[364668942,1749192673455,-480.0,0.00030328,7]
[364668943,1749192673465,-303.27141357,0.00030328,7]
[364668944,1749192673474,-681.29,0.00030328,7]
[364668945,1749192673483,-480.0,0.00030328,7]
[364668946,1749192673493,-936.43,0.00030328,7]
[364668947,1749192673502,-555.92,0.00030328,7]
[364668948,1749192673511,-196.58725767,0.00030328,7]
[364668949,1749192673521,-997.08,0.00030328,7]
[364668950,1749192673531,-480.0,0.00030328,7]
[364668951,1749192673541,-480.0,0.00030328,7]
[364668952,1749192673551,-480.0,0.00030328,7]
[364668953,1749192673560,-495.96,0.00030328,7]
[364668954,1749192673571,-506.23,0.00030328,7]
[364668955,1749192673580,-480.0,0.00030328,7]
[364668956,1749192673590,-480.0,0.00030328,7]
[364668957,1749192673599,-480.0,0.00030328,7]
[364668958,1749192673608,-485.82490159,0.00030328,7]
[364668959,1749192673618,-480.0,0.00030328,7]
[364668960,1749192673627,-480.0,0.00030328,7]
[364668961,1749192673637,-480.0,0.00030328,7]
[364668962,1749192673646,-480.0,0.00030328,7]
[364668963,1749192673656,-480.0,0.00030328,7]
[364668964,1749192673666,-480.0,0.00030328,7]
[364668965,1749192673675,-480.0,0.00030328,7]
[364668966,1749192673685,-151.0,0.00030328,7]
[364668967,1749192673695,-151.0,0.00030328,7]
[364668968,1749192673705,-480.0,0.00030328,7]
[364668969,1749192673715,-480.0,0.00030328,7]
[364668970,1749192673724,-480.0,0.00030328,7]
[364668971,1749192673734,-480.0,0.00030328,7]
[364668972,1749192673743,-480.0,0.00030328,7]
[364668973,1749192673754,-185.7570599,0.00030328,7]
[364668974,1749192673763,-480.0,0.00030328,7]
[364668975,1749192673774,-480.0,0.00030328,7]
[364668976,1749192673783,-480.0,0.00030328,2]
[364668977,1749192673794,-737.44,0.00030328,7]
[364668978,1749192673803,-480.0,0.00030328,7]
[364668979,1749192673813,-493.12451523,0.00030328,7]
[364668980,1749192673822,-480.0,0.00030328,7]
[364668981,1749192673832,-1016.07,0.00030328,7]
[364668982,1749192673842,-869.707462,0.00030328,7]
[364668983,1749192673851,-869.707462,0.00030328,7]
[364668984,1749192673861,-480.0,0.00030328,7]
[364668985,1749192673872,-552.11576029,0.00030328,7]
[364668986,1749192673882,-869.707462,0.00030328,7]
[364668987,1749192673891,-480.0,0.00030328,7]
[364668988,1749192673903,-877.28,0.00030328,7]
[364668989,1749192673913,-869.707466,0.00030328,7]
[364668990,1749192673923,-480.0,0.00030328,7]
[364668991,1749192673932,-480.0,0.00030328,7]
[364668992,1749192673941,-480.0,0.00030328,7]
[364668993,1749192673952,-965.35,0.00030328,7]
[364668994,1749192673962,-480.0,0.00030328,7]
[364668995,1749192673971,-480.0,0.00030328,7]
[364668996,1749192673981,-480.0,0.00030328,7]
[364668997,1749192673990,-480.0,0.00030328,7]
[364668998,1749192674000,-1229.29,0.00030328,7]
[364668999,1749192674009,-480.0,0.00030328,7]
[364669000,1749192674019,-480.0,0.00030328,7]
[364669001,1749192674028,-1618.52,0.00030328,7]
[364669002,1749192674039,-480.0,0.00030328,7]
[364669003,1749192674049,-480.0,0.00030328,7]
[364669004,1749192674059,-1367.62,0.00030328,7]
[364669005,1749192674069,-490.76457102,0.00030328,7]
[364669006,1749192674079,-480.0,0.00030328,7]
[364669007,1749192674089,-480.0,0.00030328,7]
[364669008,1749192674099,-480.0,0.00030328,7]
[364669009,1749192674109,-241.70510231,0.00030328,7]
[364669010,1749192674119,-480.0,0.00030328,7]
[364669011,1749192674129,-1173.56,0.00030328,7]
[364669012,1749192674138,-480.0,0.00030328,7]
[364669013,1749192674148,-480.0,0.00030328,7]
[364669014,1749192674158,-486.7117137,0.00030328,7]
[364669015,1749192674167,-480.0,0.00030328,7]
[364669016,1749192674176,-480.0,0.00030328,7]
[364669017,1749192674186,-151.0,0.00030328,7]
[364669018,1749192674195,-151.0,0.00030328,7]
[364669019,1749192674204,-151.0,0.00030328,7]
[364669020,1749192674213,-480.0,0.00030328,7]
[364669021,1749192674225,-151.0,0.00030328,7]
[364669022,1749192674235,-1096.79,0.00030328,7]
[364669023,1749192674245,-480.0,0.00030328,7]
[364669024,1749192674255,-151.0,0.00030328,7]
[364669025,1749192674264,-301.163539,0.00030328,7]
[364669026,1749192674273,-566.17,0.00030328,7]
[364669027,1749192674284,-1086.497252,0.00030328,7]
[364669028,1749192674293,-480.0,0.00030328,7]
[364669029,1749192674302,-1086.497252,0.00030328,7]
[364669030,1749192674312,-1000.0,0.00030328,15]
[364669031,1749192674321,-1086.497252,0.00030328,7]
[364669032,1749192674330,-1086.497247,0.00030328,7]
[364669033,1749192674339,-480.0,0.00030328,7]
[364669034,1749192674349,-165.68,0.00030328,7]
[364669035,1749192674359,-897.92,0.00030328,7]
[364669036,1749192674368,-882.54,0.00030328,7]
[364669037,1749192674377,-426.87521079,0.00030328,7]
[364669038,1749192674386,-365.5181928,0.00030328,2]
[364669039,1749192674396,-480.0,0.00030328,7]
[364669040,1749192674404,-480.0,0.00030328,7]
[364669041,1749192674414,-480.0,0.00030328,7]
[364669042,1749192674423,-480.0,0.00030328,7]
[364669043,1749192674434,-1373.12,0.00030328,7]
[364669044,1749192674443,-480.0,0.00030328,7]
[364669045,1749192674452,-481.98353852,0.00030328,7]
[364669046,1749192674461,-449.50438927,0.00030328,7]
[364669047,1749192674470,-863.37,0.00030328,7]
[364669048,1749192674479,-480.0,0.00030328,7]
[364669049,1749192674488,-480.0,0.00030328,7]
[364669050,1749192674498,-805.01,0.00030328,7]
[364669051,1749192674507,-987.68,0.00030328,7]
[364669052,1749192674516,-480.0,0.00030328,7]
[364669053,1749192674526,-868.96,0.00030328,7]
[364669054,1749192674536,-480.0,0.00030328,7]
[364669055,1749192674545,-195.16024903,0.00030328,7]
[364669056,1749192674555,-480.0,0.00030328,7]
[364669057,1749192674565,-984.59,0.00030328,7]
[364669058,1749192674575,-1939.89,0.00030328,7]
[364669059,1749192674584,-480.0,0.00030328,7]
[364669060,1749192674593,-480.0,0.00030328,7]
[364669061,1749192674602,-480.0,0.00030328,7]
[364669062,1749192674611,-483.21197246,0.00030328,7]
[364669063,1749192674621,-480.0,0.00030328,7]
[364669064,1749192674630,-480.0,0.00030328,7]
[364669065,1749192674639,-1324.79,0.00030328,7]
[364669066,1749192674648,-480.0,0.00030328,7]
[364669067,1749192674658,-315.12,0.00030328,7]
[364669068,1749192674667,-480.0,0.00030328,7]
[364669069,1749192674676,-480.0,0.00030328,7]
[364669070,1749192674685,-482.23540605,0.00030328,7]
[364669071,1749192674694,-480.0,0.00030328,7]
[364669072,1749192674704,-480.0,0.00030328,7]
[364669073,1749192674713,-480.0,0.00030328,7]
[364669074,1749192674722,-480.0,0.00030328,7]
[364669075,1749192674731,-480.0,0.00030328,7]
[364669076,1749192674740,-480.0,0.00030328,7]
[364669077,1749192674749,-952.67,0.00030328,7]
[364669078,1749192674758,-300.0,0.00030328,7]
[364669079,1749192674767,-480.0,0.00030328,7]
[364669080,1749192674776,-1533.58,0.00030328,7]
[364669081,1749192674786,-480.0,0.00030328,7]
[364669082,1749192674796,-480.0,0.00030328,7]
[364669083,1749192674805,-480.0,0.00030328,7]
[364669084,1749192674814,-480.0,0.00030328,7]
[364669085,1749192674824,-2000.0,0.00030328,7]
[364669086,1749192674833,-480.0,0.00030328,7]
[364669087,1749192674843,-300.0,0.00030328,7]
[364669088,1749192674852,-480.0,0.00030328,7]
[364669089,1749192674862,-583.17,0.00030328,7]
[364669090,1749192674871,-941.87,0.00030328,7]
[364669091,1749192674881,-480.0,0.00030328,7]
[364669092,1749192674890,-480.0,0.00030328,7]
[364669093,1749192674900,-514.28,0.00030328,7]
[364669094,1749192674912,-480.0,0.00030328,7]
[364669095,1749192674923,-480.0,0.00030328,7]
[364669096,1749192674932,-685.08,0.00030328,7]
[364669097,1749192674943,-480.0,0.00030328,7]
[364669098,1749192674953,-555.23,0.00030328,7]
[364669099,1749192674962,-480.0,0.00030328,7]
[364669100,1749192674972,-480.0,0.00030328,7]
[364669101,1749192674983,-1963.97,0.00030328,7]
[364669102,1749192674993,-440.14668367,0.00030328,7]
[364669103,1749192675002,-1568.45,0.00030328,7]
[364669104,1749192675012,-480.0,0.00030328,7]
[364669105,1749192675021,-480.0,0.00030328,7]
[364669106,1749192675030,-507.09387866,0.00030328,7]
[364669107,1749192675040,-480.0,0.00030328,7]
[364669108,1749192675050,-480.0,0.00030328,7]
[364669109,1749192675059,-480.0,0.00030328,7]
[364669110,1749192675069,-165.35430307,0.00030328,7]
[364669111,1749192675078,-480.0,0.00030328,7]
[364669112,1749192675087,-480.0,0.00030328,7]
[364669113,1749192675096,-1619.87,0.00030328,7]
[364669114,1749192675107,-480.0,0.00030328,7]
[364669115,1749192675116,-2063.81,0.00030328,7]
[364669116,1749192675126,-825.43,0.00030328,7]
[364669117,1749192675135,-480.0,0.00030328,7]
[364669118,1749192675145,-480.0,0.00030328,7]
[364669119,1749192675155,-500.31167585,0.00030328,7]
[364669120,1749192675165,-493.16,0.00030328,7]
[364669121,1749192675174,-480.0,0.00030328,7]
[364669122,1749192675184,-480.0,0.00030328,7]
[364669123,1749192675194,-329.982477,0.00030328,7]
[364669124,1749192675203,-480.0,0.00030328,7]
[364669125,1749192675212,-329.982477,0.00030328,7]
[364669126,1749192675221,-480.0,0.00030328,7]
[364669127,1749192675231,-1096.05,0.00030328,7]
[364669128,1749192675240,-1467.03,0.00030328,7]
[364669129,1749192675250,-623.90769779,0.00030328,7]
[364669130,1749192675418,-329.982477,0.00030328,7]
[364669131,1749192675428,-480.0,0.00030328,7]
[364669132,1749192675438,-329.982478,0.00030328,7]
[364669133,1749192675447,-480.0,0.00030328,7]
[364669134,1749192675456,-1338.49,0.00030328,7]
[364669135,1749192675465,-480.0,0.00030328,7]
[364669136,1749192675474,-480.0,0.00030328,7]
[364669137,1749192675483,-480.0,0.00030328,7]
[364669138,1749192675492,-480.0,0.00030328,7]
[364669139,1749192675501,-480.0,0.00030328,7]
[364669140,1749192675510,-449.71357824,0.00030328,7]
[364669141,1749192675519,-481.31054065,0.00030328,7]
[364669142,1749192675527,-480.0,0.00030328,7]
[364669143,1749192675536,-728.82,0.00030328,7]
[364669144,1749192675546,-480.0,0.00030328,7]
[364669145,1749192675555,-494.23,0.00030328,7]
[364669146,1749192675564,-363.83203028,0.00030328,7]
[364669147,1749192675573,-480.0,0.00030328,7]
[364669148,1749192675583,-480.0,0.00030328,7]
[364669149,1749192675592,-480.0,0.00030328,7]
[364669150,1749192675601,-207.98866974,0.00030328,7]
[364669151,1749192675610,-480.0,0.00030328,7]
[364669152,1749192675619,-518.73575585,0.00030328,7]
[364669153,1749192675628,-480.0,0.00030328,7]
[364669154,1749192675638,-480.0,0.00030328,7]
[364669155,1749192675648,-480.0,0.00030328,7]
[364669156,1749192675658,-480.0,0.00030328,7]
[364669157,1749192675667,-1332.67,0.00030328,7]
[364669158,1749192675676,-480.0,0.00030328,7]
[364669159,1749192675686,-2307.21,0.00030328,7]
[364669160,1749192675695,-480.0,0.00030328,7]
[364669161,1749192675705,-480.0,0.00030328,7]
[364669162,1749192675714,-480.0,0.00030328,7]
[364669163,1749192675723,-480.0,0.00030328,7]
[364669164,1749192675732,-489.83473255,0.00030328,7]
[364669165,1749192675741,-1629.71,0.00030328,7]
[364669166,1749192675751,-901.7,0.00030328,7]
[364669167,1749192675760,-480.0,0.00030328,7]
[364669168,1749192675769,-480.0,0.00030328,7]
[364669169,1749192675778,-480.0,0.00030328,7]
[364669170,1749192675788,-364.41992749,0.00030328,7]
[364669171,1749192675798,-561.45497211,0.00030328,7]
[364669172,1749192675807,-412.29498911,0.00030328,7]
[364669173,1749192675818,-650.15,0.00030328,7]
[364669174,1749192675827,-480.0,0.00030328,7]
[364669175,1749192675836,-480.0,0.00030328,7]
[364669176,1749192675846,-178.15380278,0.00030328,7]
[364669177,1749192675856,-480.0,0.00030328,7]
[364669178,1749192675865,-2770.23,0.00030328,7]
[364669179,1749192675875,-263.420095,0.00030328,7]
[364669180,1749192675885,-263.420095,0.00030328,7]
[364669181,1749192675895,-664.27,0.00030328,7]
[364669182,1749192675907,-480.0,0.00030328,7]
[364669183,1749192675916,-263.420095,0.00030328,7]
[364669184,1749192675926,-480.0,0.00030328,7]
[364669185,1749192675936,-263.420094,0.00030328,7]
[364669186,1749192675947,-246.05266771,0.00030328,7]
[364669187,1749192675956,-483.7632258,0.00030328,7]
[364669188,1749192675966,-1407.9,0.00030328,7]
[364669189,1749192675975,-480.0,0.00030328,7]
[364669190,1749192675986,-480.0,0.00030328,7]
[364669191,1749192675996,-478.87055813,0.00030328,7]
[364669192,1749192676005,-480.0,0.00030328,7]
[364669193,1749192676015,-480.0,0.00030328,7]
[364669194,1749192676024,-802.64,0.00030328,7]
[364669195,1749192676033,-529.21,0.00030328,7]
[364669196,1749192676043,-480.0,0.00030328,7]
[364669197,1749192676053,-480.0,0.00030328,7]
[364669198,1749192676062,-516.74305868,0.00030328,7]
[364669199,1749192676072,-480.0,0.00030328,7]
[364669200,1749192676082,-480.03202686,0.00030328,7]
[364669201,1749192676091,-480.0,0.00030328,7]